bitfinex/quotes_ETHUSD_20250319
["timestamp","ask_amount","ask_price","bid_price","bid_amount"]
[1742352318509,2.17256927,1934.6,1934.5,0.12408486]
[1742352318919,2.17256927,1934.6,1934.3,8.35402]
[1742352319116,2.17256927,1934.6,1934.5,35.124181]
[1742352319324,2.17256927,1934.6,1934.5,35.0]
[1742352319625,7.34158927,1934.6,1934.5,35.124181]
[1742352320902,2.17256927,1934.6,1934.5,35.124181]
[1742352328937,7.34158927,1934.6,1934.5,35.124181]
[1742352329107,2.17256927,1934.6,1934.5,35.124181]
[1742352330413,7.34158927,1934.6,1934.5,35.124181]
[1742352332919,2.17256927,1934.6,1934.5,35.124181]
[1742352333245,7.34158927,1934.6,1934.5,35.124181]
[1742352338547,2.17256927,1934.6,1934.5,35.124181]
[1742352339562,2.17256927,1934.6,1934.5,29.12353705]
[1742352343362,7.34158927,1934.6,1934.5,29.12353705]
[1742352346581,5.16902,1934.6,1934.5,29.12353705]
[1742352347479,7.34108927,1934.8,1934.6,3.1843]
[1742352347976,5.16852,1934.8,1934.7,0.12397594]
[1742352348148,7.009919,1934.8,1934.7,0.12397594]
[1742352348479,5.16876,1934.7,1934.6,3.0]
[1742352350550,5.16902,1934.6,1934.5,31.99935605]
[1742352351874,7.34158927,1934.6,1934.5,31.99935605]
[1742352352082,9.4003242,1934.6,1934.5,28.99935605]
[1742352353499,9.66586273,1934.6,1934.5,28.99935605]
[1742352353795,9.4003242,1934.6,1934.5,28.99935605]
[1742352354199,7.34158927,1934.6,1934.5,28.99935605]
[1742352354885,7.34132927,1934.7,1934.5,28.99935605]
[1742352357500,2.17256927,1934.7,1934.5,28.99935605]
[1742352359613,7.34137927,1934.7,1934.5,28.99935605]
[1742352359912,2.17256927,1934.6,1934.5,31.99935605]
[1742352360118,7.34158927,1934.6,1934.5,31.99935605]
[1742352361198,8.6741092,1934.6,1934.5,31.99935605]
[1742352361396,7.34158927,1934.6,1934.5,31.99935605]
[1742352363113,7.34158927,1934.6,1934.5,28.99935605]
[1742352363311,7.34158927,1934.6,1934.5,29.1237233]
[1742352364018,7.34158927,1934.6,1934.5,0.12436725]
[1742352364616,7.34158927,1934.6,1934.5,35.12436725]
[1742352364821,2.17256927,1934.6,1934.5,35.12436725]
[1742352367588,7.34158927,1934.6,1934.5,35.12436725]
[1742352368097,2.17256927,1934.6,1934.5,35.12436725]
[1742352369720,7.34158927,1934.6,1934.5,35.12436725]
[1742352369920,9.4839552,1934.6,1934.5,35.12436725]
[1742352370727,11.65652447,1934.6,1934.5,35.12436725]
[1742352370892,9.4839552,1934.6,1934.5,0.12436725]
[1742352371091,0.8103,1934.3,1933.9,5.17088]
[1742352371320,2.17256927,1934.2,1934.0,35.0]
[1742352371513,7.34267927,1934.2,1934.0,35.11681623]
[1742352371826,6.50108593,1934.6,1934.0,40.28742623]
[1742352371827,7.34223927,1934.4,1934.0,40.28742623]
[1742352372036,7.34223927,1934.4,1934.1,3.1843]
[1742352372208,2.17256927,1934.3,1934.1,3.30094451]
[1742352372533,2.17256927,1934.2,1934.1,3.30094451]
[1742352372746,2.17256927,1934.2,1934.1,3.11664451]
[1742352372894,7.34265927,1934.2,1934.1,3.11664451]
[1742352375731,2.17256927,1934.2,1934.1,3.11664451]
[1742352376245,7.34253927,1934.3,1934.1,3.11664451]
[1742352377425,2.17256927,1934.2,1934.1,3.11664451]
[1742352378021,5.16956,1934.4,1934.2,0.1843]
[1742352378222,2.17256927,1934.5,1934.2,0.1843]
[1742352378405,7.34159927,1934.6,1934.3,3.11656453]
[1742352379936,2.17256927,1934.6,1934.3,8.28632453]
[1742352380711,0.8103,1934.5,1934.3,0.11656453]
[1742352380910,7.34185927,1934.5,1934.3,0.11656453]
[1742352381115,2.17256927,1934.5,1934.3,3.30086453]
[1742352381315,2.17256927,1934.5,1934.3,3.1843]
[1742352381516,5.16855,1934.8,1934.4,0.11628509]
[1742352381720,7.34111927,1934.8,1934.6,0.1843]
[1742352382026,2.17256927,1934.7,1934.6,0.1843]
[1742352382639,2.17256927,1934.7,1934.6,38.1843]
[1742352383005,2.17256927,1934.8,1934.6,38.1843]
[1742352383326,2.17256927,1934.7,1934.6,38.1843]
[1742352383527,2.17256927,1934.7,1934.6,38.0]
[1742352384107,2.17256927,1934.8,1934.6,38.0]
[1742352384628,2.17256927,1934.8,1934.6,39.01818984]
[1742352384811,2.17256927,1934.9,1934.6,44.37145984]
[1742352385012,2.17256927,1935.0,1934.6,44.37131984]
[1742352385231,5.16774,1935.1,1934.7,5.16875]
[1742352385436,5.16773,1935.1,1934.8,3.516875]
[1742352385638,13.95660262,1935.1,1934.8,3.0]
[1742352385824,3.62095262,1935.0,1934.8,3.0]
[1742352386425,10.33565,1935.1,1934.8,3.0]
[1742352386426,3.62095262,1935.1,1934.8,3.0]
[1742352386727,3.62095262,1935.1,1934.8,8.35276]
[1742352387058,3.62095262,1935.1,1934.8,3.1843]
[1742352387520,8.78865262,1935.1,1934.8,3.1843]
[1742352387722,8.78865262,1935.1,1934.9,0.31843]
[1742352387933,3.62095262,1935.1,1934.9,0.31843]
[1742352388341,5.6661,1935.3,1934.9,0.31843]
[1742352388540,8.78796262,1935.4,1934.9,5.48644]
[1742352388740,8.78795262,1935.4,1935.0,5.716564]
[1742352388946,3.62095262,1935.4,1935.1,3.1843]
[1742352389841,3.62095262,1935.4,1935.2,35.0]
[1742352391238,3.62095262,1935.5,1935.3,3.0]
[1742352391416,8.78768262,1935.5,1935.1,13.51956]
[1742352391617,8.78768262,1935.5,1935.2,0.98654884]
[1742352391828,8.78768262,1935.5,1935.4,35.0]
[1742352393225,8.78768262,1935.5,1935.4,35.10958295]
[1742352393452,9.57578262,1935.5,1935.4,0.10958295]
[1742352393942,5.16737,1935.3,1935.1,3.0]
[1742352394137,9.57647262,1935.2,1935.1,3.0]
[1742352394542,9.57647262,1935.2,1935.1,38.0]
[1742352394840,11.05085688,1935.2,1935.1,35.0]
[1742352395048,19.5478095,1935.2,1935.1,35.0]
[1742352395258,10.33683,1934.9,1934.4,15.39909]
[1742352395454,13.95778262,1934.9,1934.5,3.0]
[1742352395652,13.95778262,1934.9,1934.7,35.0]
[1742352395862,3.62095262,1934.8,1934.7,35.0]
[1742352396174,8.78944262,1934.8,1934.7,35.0]
[1742352398604,9.55414262,1934.8,1934.7,35.0]
[1742352400998,14.43114262,1934.8,1934.7,35.0]
[1742352401175,16.4308534,1934.8,1934.7,35.0]
[1742352406320,5.16982,1934.3,1934.0,17.097]
[1742352406616,8.79077262,1934.3,1934.1,0.11254119]
[1742352406930,8.79024262,1934.5,1934.2,0.1843]
[1742352407112,8.79024262,1934.5,1934.2,0.29666949]
[1742352407298,8.79024262,1934.5,1934.3,35.0]
[1742352407503,3.62095262,1934.4,1934.3,35.0]
[1742352408094,8.79051262,1934.4,1934.3,35.0]
[1742352408415,8.79051262,1934.4,1934.3,35.11223956]
[1742352411329,5.16929,1934.5,1934.3,35.11223956]
[1742352411624,8.79024262,1934.5,1934.3,35.11223956]
[1742352412761,13.95975262,1934.5,1934.3,35.11223956]
[1742352412965,3.62095262,1934.4,1934.3,35.11223956]
[1742352413165,8.79051262,1934.4,1934.3,35.11223956]
[1742352413970,3.62095262,1934.4,1934.3,35.11223956]
[1742352415369,8.79029262,1934.5,1934.3,35.11223956]
[1742352417972,5.16903,1934.6,1934.3,35.11223956]
[1742352417973,8.79001262,1934.6,1934.3,35.11223956]
[1742352418130,3.62095262,1934.6,1934.3,40.28203956]
[1742352418331,13.66645262,1934.8,1934.5,0.1843]
[1742352418742,13.66645262,1934.8,1934.6,0.11180812]
[1742352419091,8.78945262,1934.8,1934.6,0.11180812]
[1742352419840,9.60554262,1935.0,1934.6,3.11180812]
[1742352420066,3.62095262,1934.9,1934.6,3.95833093]
[1742352420240,8.78921262,1934.9,1934.6,3.95833093]
[1742352420637,3.62095262,1934.8,1934.6,3.95833093]
[1742352421148,8.78918262,1934.9,1934.6,3.95833093]
[1742352421941,8.78918262,1934.9,1934.7,35.0]
[1742352422352,8.78918262,1934.9,1934.8,0.11139333]
[1742352422353,5.16823,1934.9,1934.8,0.11139333]
[1742352422743,5.16804,1935.0,1934.8,0.11139333]
[1742352422973,5.16804,1935.0,1934.9,35.0]
[1742352423271,5.16804,1935.0,1934.9,35.11122175]
[1742352423472,8.78899262,1935.0,1934.9,35.11122175]
[1742352424551,5.55893193,1935.4,1934.9,38.11122175]
[1742352424760,8.78844262,1935.2,1934.9,38.11122175]
[1742352425074,3.62095262,1935.1,1934.9,38.11122175]
[1742352425476,3.62095262,1935.2,1934.9,38.11122175]
[1742352425639,3.62095262,1935.2,1935.0,3.0]
[1742352425841,3.62095262,1935.2,1935.1,0.11047865]
[1742352426483,8.78827262,1935.3,1935.1,0.11047865]
[1742352426779,3.62095262,1935.3,1935.1,0.11047865]
[1742352427144,3.62095262,1935.3,1935.2,35.0]
[1742352427568,3.62095262,1935.3,1935.2,35.11030713]
[1742352428203,8.78810262,1935.3,1935.2,35.11030713]
[1742352428610,3.62095262,1935.3,1935.2,35.11030713]
[1742352432677,3.62095262,1935.3,1935.2,0.11030713]
[1742352432872,8.78810262,1935.3,1935.2,0.11030713]
[1742352433078,5.16742,1935.2,1935.1,35.0]
[1742352433279,8.78837262,1935.2,1935.1,35.0]
[1742352433699,12.40932524,1935.2,1935.1,35.0]
[1742352433912,11.10439,1934.8,1934.4,5.3538]
[1742352434225,3.62095262,1934.7,1934.4,4.236647]
[1742352434719,9.55671262,1934.8,1934.4,4.236647]
[1742352434909,9.55671262,1934.8,1934.7,38.0]
[1742352436022,8.78919262,1934.9,1934.7,38.0]
[1742352436191,3.62095262,1934.9,1934.7,38.0]
[1742352437407,3.62095262,1934.9,1934.7,38.80127584]
[1742352438123,13.66390262,1935.0,1934.7,38.98557584]
[1742352438323,13.66390262,1935.0,1934.8,0.111047]
[1742352438627,8.78890262,1935.0,1934.8,0.111047]
[1742352439124,8.78864262,1935.1,1934.8,0.111047]
[1742352439325,3.62095262,1935.1,1934.8,1.163394]
[1742352439534,3.62095262,1935.0,1934.8,1.163394]
[1742352439746,3.62095262,1934.9,1934.8,0.111047]
[1742352441138,8.85377419,1934.9,1934.8,0.111047]
[1742352441292,8.78917262,1934.9,1934.8,0.111047]
[1742352444434,8.78917262,1934.9,1934.6,0.1843]
[1742352444733,3.62095262,1934.8,1934.7,35.11114108]
[1742352446625,8.78944262,1934.8,1934.7,35.11114108]
[1742352451429,15.06020888,1934.8,1934.7,35.11114108]
[1742352451619,15.82400888,1934.8,1934.7,0.11114108]
[1742352451825,5.16988,1934.3,1934.0,0.1843]
[1742352452036,8.79083262,1934.3,1934.0,3.1843]
[1742352452237,8.79083262,1934.3,1934.2,35.0]
[1742352452454,3.62095262,1934.3,1934.2,35.0]
[1742352452656,8.79054262,1934.4,1934.2,35.0]
[1742352453055,3.62095262,1934.3,1934.2,35.0]
[1742352453258,3.62095262,1934.3,1934.2,35.10815523]
[1742352454357,8.79077262,1934.3,1934.2,35.10815523]
[1742352454764,3.62095262,1934.3,1934.2,35.10815523]
[1742352455053,8.79077262,1934.3,1934.2,35.10815523]
[1742352459658,8.79077262,1934.3,1934.2,0.10815523]
[1742352459830,10.26318888,1934.3,1934.2,0.10815523]
[1742352460035,5.17023,1934.2,1933.9,3.1843]
[1742352460235,8.79118262,1934.2,1933.9,3.1843]
[1742352460538,8.79118262,1934.2,1934.1,38.0]
[1742352462243,5.17023,1934.2,1934.1,38.0]
[1742352466071,8.79118262,1934.2,1934.1,38.0]
[1742352466572,8.79077262,1934.3,1934.1,38.0]
[1742352466767,13.96071262,1934.3,1934.1,38.0]
[1742352467068,8.79077262,1934.3,1934.1,38.0]
[1742352467669,5.93349,1934.4,1934.1,38.0]
[1742352467875,8.79064262,1934.4,1934.1,38.0]
[1742352468174,13.95995262,1934.5,1934.2,0.29299209]
[1742352468375,3.62095262,1934.4,1934.2,0.29299209]
[1742352468569,3.62095262,1934.3,1934.2,0.29299209]
[1742352468774,3.62095262,1934.3,1934.2,0.10869209]
[1742352469278,8.79077262,1934.3,1934.2,0.10869209]
[1742352472250,10.26590588,1934.3,1934.2,0.10869209]
[1742352473246,10.26590588,1934.3,1934.2,35.10869209]
[1742352474280,11.09910588,1934.3,1934.2,35.10869209]
[1742352474576,7.47815326,1934.3,1934.2,35.10869209]
[1742352474765,11.09910588,1934.3,1934.2,35.10869209]
[1742352475247,10.26590588,1934.3,1934.2,35.10869209]
[1742352477282,7.47815326,1934.3,1934.2,35.10869209]
[1742352477760,7.47815326,1934.3,1934.2,0.10869209]
[1742352477959,7.47815326,1934.3,1933.8,3.1843]
[1742352478157,3.62095262,1934.1,1934.0,3.0]
[1742352478370,8.79135262,1934.1,1934.0,3.0]
[1742352478565,3.62095262,1934.1,1934.0,3.0]
[1742352479268,8.79131262,1934.1,1934.0,3.0]
[1742352481151,8.79131262,1934.1,1933.9,35.0]
[1742352483295,8.79131262,1934.1,1934.0,0.10923838]
[1742352483510,10.18746188,1934.1,1934.0,0.10923838]
[1742352485313,8.79131262,1934.1,1934.0,0.10923838]
[1742352486777,8.79131262,1934.1,1933.7,3.0]
[1742352486976,8.79131262,1934.1,1934.0,35.10481588]
[1742352487209,8.79131262,1934.1,1934.0,35.0]
[1742352487411,8.79131262,1934.1,1934.0,35.10481588]
[1742352489417,10.18746188,1934.1,1934.0,35.10481588]
[1742352490418,8.79131262,1934.1,1934.0,35.10481588]
[1742352491411,3.62095262,1934.1,1934.0,35.10481588]
[1742352492817,8.79131262,1934.1,1934.0,35.10481588]
[1742352494798,13.96078262,1934.3,1934.0,35.10481588]
[1742352495580,8.79061262,1934.4,1934.0,40.27540588]
[1742352495784,8.79061262,1934.4,1934.1,0.1843]
[1742352496115,8.79061262,1934.4,1934.1,0.28897361]
[1742352496695,8.79024262,1934.5,1934.1,3.28897361]
[1742352496897,3.62095262,1934.4,1934.1,8.45921361]
[1742352497308,3.62095262,1934.4,1934.1,3.28897361]
[1742352497507,3.62095262,1934.3,1934.1,3.28897361]
[1742352497696,3.62095262,1934.2,1934.1,3.10467361]
[1742352497896,8.79083262,1934.3,1934.1,3.10467361]
[1742352498383,3.62095262,1934.3,1934.1,3.10467361]
[1742352500188,8.79104262,1934.2,1934.1,3.10467361]
[1742352502223,5.17009,1934.2,1934.1,3.28897361]
[1742352502519,9.56564262,1934.2,1934.1,3.10467361]
[1742352502717,9.56564262,1934.2,1934.1,0.10467361]
[1742352503025,10.46602596,1934.2,1934.1,0.10467361]
[1742352503592,5.1704,1934.1,1933.8,3.0]
[1742352503792,5.1704,1934.1,1934.0,3.0]
[1742352503793,10.341,1934.1,1934.0,3.0]
[1742352504099,5.17069,1934.0,1933.7,3.1843]
[1742352504299,3.62095262,1933.9,1933.7,0.1843]
[1742352504602,8.79185262,1933.9,1933.8,35.0]
[1742352504808,5.1709,1933.9,1933.8,35.0]
[1742352505120,8.79164262,1934.0,1933.9,3.0]
[1742352505432,10.18784288,1934.0,1933.9,3.0]
[1742352505609,5.17089,1933.9,1933.8,38.0]
[1742352505809,8.79184262,1933.9,1933.8,38.0]
[1742352506417,8.79184262,1933.9,1933.8,35.0]
[1742352509010,5.17089,1933.9,1933.8,35.0]
[1742352512528,8.79184262,1933.9,1933.8,35.0]
[1742352512921,10.98369588,1933.9,1933.8,35.0]
[1742352515937,5.17143,1933.7,1933.6,0.01300923]
[1742352516231,8.79238262,1933.7,1933.6,0.11921022]
[1742352518156,8.79238262,1933.7,1933.6,35.11921022]
[1742352519732,9.58558262,1933.7,1933.6,35.11921022]
[1742352519916,11.06126488,1933.7,1933.6,35.11921022]
[1742352520530,9.58558262,1933.7,1933.6,35.11921022]
[1742352521308,13.20653524,1933.7,1933.6,35.11921022]
[1742352521522,13.20653524,1933.7,1933.6,0.11921022]
[1742352521948,13.20653524,1933.7,1933.6,0.01300923]
[1742352522251,13.20653524,1933.7,1933.6,35.01300923]
[1742352522456,15.08234362,1933.7,1933.6,35.01300923]
[1742352522760,15.08234362,1933.7,1933.6,35.11564417]
[1742352523755,11.461391,1933.7,1933.6,35.11564417]
[1742352523957,11.461391,1933.7,1933.6,0.10263494]
[1742352524136,5.17213,1933.5,1933.1,0.17913494]
[1742352524338,3.62095262,1933.4,1933.1,0.71437643]
[1742352524540,3.62095262,1933.4,1933.2,0.09965675]
[1742352524854,8.79331262,1933.4,1933.3,35.0]
[1742352525061,9.59691262,1933.4,1933.3,35.09948489]
[1742352526259,8.79331262,1933.4,1933.3,35.09948489]
[1742352527251,10.34425,1933.5,1933.3,35.09948489]
[1742352527451,8.79307262,1933.5,1933.3,35.09948489]
[1742352527851,8.79318262,1933.4,1933.3,35.09948489]
[1742352528035,9.59678262,1933.4,1933.3,35.09948489]
[1742352530650,8.79318262,1933.4,1933.3,35.09948489]
[1742352531966,8.79318262,1933.4,1933.3,0.09948489]
[1742352532172,5.17305,1933.1,1932.9,0.251937]
[1742352532369,5.17305,1933.1,1933.0,38.0]
[1742352532574,5.17305,1933.1,1933.0,38.10063357]
[1742352533449,13.96663262,1933.2,1933.0,38.10063357]
[1742352533672,13.96674262,1933.2,1933.0,38.10063357]
[1742352533877,5.17303,1933.1,1933.0,38.10063357]
[1742352535981,8.79398262,1933.1,1933.0,38.10063357]
[1742352538253,10.95746088,1933.1,1933.0,35.10063357]
[1742352541984,11.34345053,1933.1,1933.0,35.10063357]
[1742352546567,10.95746088,1933.1,1933.0,35.10063357]
[1742352547359,5.1733,1933.0,1932.9,0.072837]
[1742352547659,9.95467466,1933.0,1932.9,0.072837]
[1742352547866,9.88999871,1933.0,1932.9,0.072837]
[1742352550659,3.62095262,1933.0,1932.9,0.072837]
[1742352550861,3.62095262,1933.1,1933.0,0.1791]
[1742352552190,8.49795262,1933.2,1933.0,0.1791]
[1742352552394,3.62095262,1933.2,1933.0,0.1791]
[1742352553056,3.62095262,1933.1,1933.0,0.1791]
[1742352554263,3.62095262,1933.2,1933.0,3.7216467]
[1742352554567,3.62095262,1933.2,1933.0,8.8948267]
[1742352555176,3.62095262,1933.2,1933.1,0.09701699]
[1742352556192,5.17211,1933.5,1933.1,8.27004699]
[1742352556366,3.62095262,1933.3,1933.2,0.1791]
[1742352556760,5.17211,1933.5,1933.2,1.12085981]
[1742352556970,3.62095262,1933.4,1933.2,4.12085981]
[1742352557590,3.62095262,1933.5,1933.2,9.29344981]
[1742352557764,11.12041,1933.8,1933.4,5.17223]
[1742352557964,3.62095262,1933.5,1933.3,5.35144]
[1742352558379,3.62095262,1933.6,1933.4,3.09639986]
[1742352558667,3.62095262,1933.6,1933.5,0.1791]
[1742352558883,3.62095262,1933.6,1933.5,0.27532804]
[1742352559081,3.62095262,1933.7,1933.5,0.27532804]
[1742352559307,3.62095262,1933.7,1933.5,5.44728804]
[1742352561605,3.62095262,1933.7,1933.5,10.61909804]
[1742352562005,3.62095262,1933.7,1933.5,5.44713804]
[1742352562503,3.62095262,1933.7,1933.5,10.61897804]
[1742352562730,3.62095262,1933.7,1933.5,10.61898804]
[1742352563085,3.62095262,1933.6,1933.5,0.27532804]
[1742352563704,3.62095262,1933.6,1933.5,0.09622804]
[1742352564275,10.04688,1934.0,1933.5,0.09622804]
[1742352564276,3.62095262,1933.7,1933.5,0.09622804]
[1742352564907,3.62095262,1933.6,1933.5,0.09622804]
[1742352569394,4.57877088,1933.6,1933.5,0.09622804]
[1742352570309,3.62095262,1933.6,1933.5,0.09622804]
[1742352570498,5.1709,1933.9,1933.5,5.44722804]
[1742352570699,3.62095262,1933.7,1933.5,5.44722804]
[1742352571009,3.62095262,1933.7,1933.5,3.27532804]
[1742352571209,3.62095262,1933.6,1933.5,3.27532804]
[1742352573406,10.83233,1934.0,1933.5,8.44728804]
[1742352573579,3.62095262,1933.7,1933.5,8.44728804]
[1742352573779,3.62095262,1933.6,1933.5,8.44728804]
[1742352574576,3.62095262,1933.7,1933.5,8.44728804]
[1742352575101,3.62095262,1933.6,1933.5,8.44728804]
[1742352575504,3.62095262,1933.6,1933.5,3.27532804]
[1742352575694,3.62095262,1933.6,1933.5,3.09622804]
[1742352580013,3.98304788,1933.6,1933.5,3.09622804]
[1742352580187,3.62095262,1933.6,1933.5,3.09622804]
[1742352587988,8.79212262,1933.8,1933.5,3.09622804]
[1742352588194,3.62095262,1933.8,1933.6,0.1791]
[1742352588522,3.62095262,1933.8,1933.7,0.09506623]
[1742352588720,3.62095262,1933.8,1933.6,0.1791]
[1742352588935,3.62095262,1933.8,1933.7,0.09506623]
[1742352588936,1.50461956,1933.8,1933.7,0.09506623]
[1742352589217,5.12557218,1933.8,1933.7,0.09506623]
[1742352589395,10.29674218,1933.8,1933.5,3.0]
[1742352589600,6.67578956,1933.8,1933.7,0.09506623]
[1742352589807,5.17143,1933.7,1933.6,0.09523803]
[1742352590018,5.17143,1933.7,1933.5,3.0]
[1742352590233,7.43208956,1933.8,1933.5,3.0]
[1742352590524,3.62095262,1933.6,1933.5,3.0]
[1742352592599,5.17087,1934.0,1933.6,3.0]
[1742352592600,8.79187262,1933.9,1933.6,3.0]
[1742352592888,10.26377388,1933.9,1933.6,3.0]
[1742352593309,3.62095262,1933.8,1933.6,3.0]
[1742352598596,3.62095262,1933.8,1933.6,8.17168]
[1742352598795,1.47190126,1933.9,1933.7,5.35053]
[1742352598796,3.62095262,1933.9,1933.7,5.35053]
[1742352599706,3.62095262,1933.9,1933.7,0.1791]
[1742352601437,3.62095262,1934.0,1933.7,5.3505]
[1742352601664,0.7967,1934.6,1934.1,0.1791]
[1742352601940,3.62095262,1934.5,1934.3,3.0]
[1742352602307,3.62095262,1934.4,1934.3,3.0]
[1742352603312,3.62095262,1934.4,1934.3,3.09377919]
[1742352603840,3.62095262,1934.5,1934.3,3.09377919]
[1742352604144,5.16877,1934.7,1934.3,9.08995311]
[1742352604308,9.58614262,1934.8,1934.4,5.34854]
[1742352604502,3.62095262,1934.8,1934.5,5.16918]
[1742352604738,3.62095262,1934.8,1934.5,3.09323896]
[1742352605044,3.62095262,1934.7,1934.5,3.09323896]
[1742352605208,3.62095262,1934.7,1934.6,0.3093239]
[1742352605536,3.62095262,1934.7,1934.6,0.40239123]
[1742352606106,8.78948262,1934.8,1934.6,0.40239123]
[1742352606307,3.62095262,1934.8,1934.6,0.40239123]
[1742352607018,8.78928262,1934.9,1934.6,0.40239123]
[1742352607231,3.62095262,1934.7,1934.6,0.40239123]
[1742352608326,3.62095262,1934.7,1934.6,0.09306733]
[1742352610147,3.62095262,1934.8,1934.6,0.09306733]
[1742352611347,8.78928262,1934.9,1934.6,0.09306733]
[1742352612537,3.62095262,1934.8,1934.6,0.09306733]
[1742352613437,8.78928262,1934.9,1934.6,0.09306733]
[1742352614144,3.62095262,1934.8,1934.6,0.09306733]
[1742352615731,8.78928262,1934.9,1934.6,0.09306733]
[1742352616132,3.62095262,1934.9,1934.6,0.09306733]
[1742352616332,8.78917262,1934.9,1934.6,0.09306733]
[1742352616561,3.62095262,1934.7,1934.6,0.09306733]
[1742352617730,3.62095262,1934.8,1934.6,0.09306733]
[1742352617962,3.62095262,1934.9,1934.6,0.09306733]
[1742352618458,3.62095262,1934.9,1934.6,5.26191733]
[1742352618665,3.62095262,1934.9,1934.7,5.16875]
[1742352618872,3.62095262,1934.9,1934.7,0.09242436]
[1742352619045,3.62095262,1934.9,1934.8,3.0]
[1742352619363,3.62095262,1934.9,1934.8,3.09225276]
[1742352620660,4.871,1935.3,1934.8,5.26056276]
[1742352620661,3.62095262,1935.2,1934.8,5.26056276]
[1742352620843,3.62095262,1935.2,1934.9,8.87332628]
[1742352621043,3.62095262,1935.2,1935.0,0.09153386]
[1742352621841,8.78798262,1935.4,1935.0,5.25947386]
[1742352622075,8.78798262,1935.4,1935.1,3.0]
[1742352622259,3.62095262,1935.3,1935.1,3.09130269]
[1742352622554,3.62095262,1935.3,1935.1,3.91720896]
[1742352623757,3.62095262,1935.2,1935.1,3.91720896]
[1742352624083,3.62095262,1935.2,1935.1,3.09130269]
[1742352624378,8.78837262,1935.2,1935.1,0.09130269]
[1742352624955,3.62095262,1935.2,1934.9,4.02791292]
[1742352625187,5.99719,1935.3,1935.1,0.09130269]
[1742352625372,3.62095262,1935.2,1935.0,0.09120001]
[1742352625574,3.62095262,1935.2,1935.0,0.92873329]
[1742352627996,4.45095262,1935.3,1935.1,3.0]
[1742352628376,3.62095262,1935.2,1935.1,3.0]
[1742352629494,5.99609,1935.7,1935.4,3.0]
[1742352629793,3.62095262,1935.7,1935.4,8.34587]
[1742352630095,3.62095262,1935.6,1935.4,8.34587]
[1742352630494,3.62095262,1935.5,1935.4,3.1791]
[1742352630688,3.62095262,1935.5,1935.3,0.1791]
[1742352630858,5.99584,1935.8,1935.4,3.0]
[1742352631064,3.62095262,1935.5,1935.2,3.0]
[1742352631264,3.62095262,1935.5,1935.2,7.869]
[1742352631493,3.62095262,1935.6,1935.2,13.03639]
[1742352631670,3.62095262,1935.5,1935.2,13.03639]
[1742352632071,3.62095262,1935.4,1935.2,13.03639]
[1742352632296,3.62095262,1935.4,1935.2,7.869]
[1742352632966,3.62095262,1935.4,1935.2,13.03641]
[1742352633169,3.62095262,1935.4,1935.2,7.869]
[1742352633391,3.62095262,1935.4,1935.3,0.15668032]
[1742352638594,3.62095262,1935.5,1935.3,8.32383032]
[1742352638803,3.62095262,1935.5,1935.3,3.15668032]
[1742352639021,3.62095262,1935.5,1935.3,8.32381032]
[1742352639723,3.62095262,1935.5,1935.3,3.15668032]
[1742352640024,3.62095262,1935.4,1935.3,3.15668032]
[1742352642742,0.01311737,1935.6,1935.5,3.0]
[1742352643145,0.01311737,1935.6,1935.5,3.1564851]
[1742352643446,0.01311737,1935.6,1935.5,8.3231051]
[1742352644996,3.63406999,1935.6,1935.5,3.1564851]
[1742352645206,3.63406999,1935.6,1935.5,8.3231051]
[1742352646029,0.01311737,1935.6,1935.5,8.3231051]
[1742352646228,0.01311737,1935.6,1935.5,8.85743491]
[1742352647561,0.01311737,1935.6,1935.5,9.90821302]
[1742352651269,0.01311737,1935.6,1935.5,4.74159302]
[1742352652085,0.01311737,1935.6,1935.5,9.90821302]
[1742352653897,0.01311737,1935.6,1935.5,10.08731302]
[1742352655789,0.01311737,1935.6,1935.5,10.56981323]
[1742352658495,0.01,1935.9,1935.8,8.89492]
[1742352658699,0.01,1935.9,1935.8,24.36236462]
[1742352658866,0.01,1935.9,1935.8,24.51785397]
[1742352659669,0.01,1935.9,1935.8,21.37940156]
[1742352660101,0.01,1935.9,1935.8,21.76545494]
[1742352660706,0.01,1935.9,1935.8,22.32964458]
[1742352661274,0.01,1935.9,1935.8,23.20483908]
[1742352662105,0.01,1935.9,1935.8,22.65483908]
[1742352662272,0.01,1935.9,1935.8,22.08160897]
[1742352662676,0.01,1935.9,1935.8,21.69555559]
[1742352663078,0.01,1935.9,1935.8,15.0734912]
[1742352664278,0.01,1935.9,1935.8,15.46161502]
[1742352672186,0.01,1935.9,1935.8,15.0734912]
[1742352672484,0.01,1935.9,1935.8,14.1839992]
[1742352672685,0.01,1935.9,1935.8,8.02148935]
[1742352673621,3.63095262,1935.9,1935.8,3.15548935]
[1742352674330,9.60260262,1935.9,1935.8,0.15548935]
[1742352674618,0.8061,1935.7,1935.5,17.088]
[1742352674827,0.8061,1935.7,1935.5,18.11185932]
[1742352675114,0.8061,1935.7,1935.6,3.0]
[1742352675488,0.8061,1935.7,1935.5,18.11185932]
[1742352675716,5.97219,1935.7,1935.6,3.0]
[1742352676290,0.8061,1935.7,1935.6,3.0]
[1742352676489,5.97218,1935.7,1935.6,3.0]
[1742352677086,0.8061,1935.7,1935.6,3.0]
[1742352677292,4.42705262,1935.7,1935.6,3.0]
[1742352678121,4.42705262,1935.7,1935.6,3.15552376]
[1742352679526,5.17555,1935.9,1935.6,3.15552376]
[1742352679527,3.62095262,1935.8,1935.6,3.15552376]
[1742352680924,3.62095262,1935.7,1935.6,3.15552376]
[1742352682724,3.62095262,1935.7,1935.6,0.15552376]
[1742352683927,3.62095262,1935.8,1935.6,0.15552376]
[1742352687424,5.16608,1935.7,1935.6,0.15552376]
[1742352687632,5.95418,1935.7,1935.6,0.15552376]
[1742352687831,0.7881,1935.7,1935.6,0.15552376]
[1742352689627,8.78701262,1935.8,1935.6,0.15552376]
[1742352689628,9.57511262,1935.8,1935.6,0.15552376]
[1742352690035,3.62095262,1935.8,1935.6,5.32175376]
[1742352690198,3.62095262,1935.8,1935.7,3.0]
[1742352690539,3.62095262,1935.8,1935.7,3.15577754]
[1742352691926,3.62095262,1935.8,1935.7,0.15577754]
[1742352692311,3.62095262,1935.8,1935.5,9.36957932]
[1742352692518,8.78678262,1935.8,1935.6,0.15586918]
[1742352692711,3.62095262,1935.7,1935.6,0.15586918]
[1742352696773,0.01,1935.9,1935.8,8.16582]
[1742352696964,0.01,1935.9,1935.8,3.0]
[1742352697126,3.63095262,1935.9,1935.8,3.0]
[1742352698359,3.63095262,1935.9,1935.8,3.1555787]
[1742352710596,9.61290262,1935.9,1935.8,3.1555787]